bitfinex/quotes_SOLUSD_20240829
["timestamp","ask_amount","ask_price","bid_price","bid_amount"]
[1724945888908,31.00546846,147.45,147.36,45.0]
[1724945889106,6.7835,147.42,147.36,45.0]
[1724945890906,6.7835,147.42,147.36,46.35700553]
[1724945891689,6.7835,147.42,147.36,45.0]
[1724945892495,6.7835,147.42,147.35,22.883]
[1724945893220,6.7839,147.41,147.35,22.883]
[1724945894592,37.78846846,147.43,147.36,1.35708344]
[1724945894916,6.7828,147.43,147.37,1.35694067]
[1724945895412,6.7828,147.43,147.36,45.0]
[1724945895594,6.7834,147.42,147.36,45.0]
[1724945895985,6.7834,147.42,147.35,22.883]
[1724945896802,6.7839,147.41,147.35,22.883]
[1724945897392,6.7843,147.4,147.35,22.883]
[1724945898422,31.00546846,147.41,147.35,22.883]
[1724945898619,37.79026846,147.39,147.31,21.909]
[1724945900522,6.7851,147.38,147.31,23.26638392]
[1724945900907,31.00546846,147.39,147.31,21.909]
[1724945902415,6.7852,147.38,147.31,21.909]
[1724945902715,31.00546846,147.39,147.31,21.909]
[1724945902716,6.7856,147.37,147.31,21.909]
[1724945903101,37.79106846,147.37,147.31,21.909]
[1724945904192,31.00546846,147.39,147.32,45.0]
[1724945904401,31.00546846,147.41,147.32,45.0]
[1724945904722,270.1556,147.45,147.32,45.0]
[1724945904723,37.78836846,147.43,147.32,45.0]
[1724945905017,6.7833,147.42,147.33,21.60805027]
[1724945905219,6.7833,147.42,147.34,45.0]
[1724945905721,37.78836846,147.43,147.35,1.35707007]
[1724945905901,6.7833,147.42,147.34,45.0]
[1724945906533,31.00546846,147.43,147.34,45.0]
[1724945907232,31.00546846,147.43,147.35,0.12549]
[1724945907723,21.7005,147.47,147.36,22.0047]
[1724945907724,31.00546846,147.45,147.36,22.0047]
[1724945907913,31.00546846,147.45,147.37,45.0]
[1724945909015,37.78756846,147.45,147.37,45.0]
[1724945911103,31.00546846,147.45,147.37,45.0]
[1724945912523,31.00546846,147.49,147.38,21.35673507]
[1724945912728,31.00546846,147.49,147.39,45.0]
[1724945912913,31.00546846,147.49,147.4,1.35658881]
[1724945913116,6.7806,147.48,147.4,1.35658881]
[1724945913505,31.00546846,147.47,147.39,45.0]
[1724945914003,6.7815,147.46,147.39,45.0]
[1724945914203,37.78656846,147.47,147.39,45.0]
[1724945914428,31.00546846,147.47,147.39,45.0]
[1724945915509,31.00546846,147.47,147.4,1.35657868]
[1724945915723,31.00546846,147.47,147.39,45.0]
[1724945915910,37.78646846,147.47,147.39,45.0]
[1724945917505,31.00546846,147.47,147.39,45.0]
[1724945918204,37.78656846,147.47,147.39,45.0]
[1724945919122,6.7815,147.46,147.39,45.0]
[1724945919705,31.00546846,147.45,147.38,20.0]
[1724945919918,31.00546846,147.45,147.37,20.12549]
[1724945920218,31.00546846,147.45,147.38,45.0]
[1724945921634,37.78756846,147.45,147.37,20.0]
[1724945921826,37.78756846,147.45,147.36,22.0047]
[1724945922134,6.7824,147.44,147.37,45.0]
[1724945923518,6.7824,147.44,147.36,22.0047]
[1724945924106,6.7829,147.43,147.36,22.0047]
[1724945924533,6.7824,147.44,147.37,1.35697094]
[1724945924725,6.7824,147.44,147.37,45.0]
[1724945925631,6.7824,147.44,147.37,46.35688795]
[1724945926233,6.7824,147.44,147.37,45.0]
[1724945926415,6.7829,147.43,147.37,45.0]
[1724945926616,6.7829,147.43,147.36,22.0047]
[1724945927131,6.7818,147.46,147.36,22.0047]
[1724945927332,31.00546846,147.46,147.37,45.25098]
[1724945927511,31.00546846,147.46,147.37,45.0]
[1724945927822,6.7827,147.44,147.37,45.0]
[1724945928338,6.7814,147.47,147.38,1.48233374]
[1724945928829,6.7815,147.46,147.38,1.48233374]
[1724945929027,6.7815,147.46,147.38,0.12549]
[1724945929330,6.7822,147.45,147.37,45.0]
[1724945930417,6.7829,147.43,147.37,45.0]
[1724945930606,37.78796846,147.44,147.37,45.0]
[1724945930812,6.7821,147.45,147.37,45.0]
[1724945932044,6.7814,147.47,147.37,45.0]
[1724945932336,6.7814,147.47,147.38,0.25098]
[1724945933011,31.00546846,147.5,147.38,51.60757227]
[1724945933206,31.00546846,147.5,147.39,45.0]
[1724945933422,6.7804,147.49,147.4,20.12549]
[1724945933629,6.7804,147.49,147.41,45.0]
[1724945937036,37.78516846,147.5,147.41,45.0]
[1724945937215,37.78516846,147.5,147.42,21.2905]
[1724945937417,37.78516846,147.5,147.43,45.0]
[1724945938039,6.7801,147.49,147.43,45.0]
[1724945938541,6.7801,147.49,147.42,21.2905]
[1724945939541,6.781,147.47,147.42,21.2905]
[1724945939735,6.7815,147.46,147.38,22.1335]
[1724945939940,6.7815,147.46,147.39,20.0]
[1724945940120,6.7815,147.46,147.39,21.3566864]
[1724945940328,6.7815,147.46,147.4,1.3566864]
[1724945940629,37.78626846,147.48,147.39,20.0]
[1724945940823,37.78626846,147.48,147.4,0.12549]
[1724945941025,37.78626846,147.48,147.4,45.12549]
[1724945941825,31.00546846,147.5,147.4,45.12549]
[1724945942130,31.00546846,147.5,147.41,1.35637905]
[1724945942525,31.00546846,147.5,147.4,45.12549]
[1724945942732,6.7802,147.49,147.41,0.12549]
[1724945942938,31.00546846,147.52,147.41,1.48182752]
[1724945943150,6.7792,147.51,147.42,22.25899]
[1724945943450,31.00546846,147.52,147.43,46.48171595]
[1724945943635,31.00546846,147.54,147.43,45.12549]
[1724945943831,6.7779,147.54,147.44,21.48142912]
[1724945944144,6.7779,147.54,147.45,45.12549]
[1724945944345,6.7779,147.54,147.46,1.48142988]
[1724945944542,6.7774,147.55,147.46,1.48142988]
[1724945945355,6.7774,147.55,147.46,0.12549]
[1724945945847,6.7778,147.54,147.46,0.12549]
[1724945946259,37.78326846,147.54,147.46,0.12549]
[1724945946547,31.00546846,147.54,147.46,0.12549]
[1724945946856,31.00546846,147.56,147.46,1.48138301]
[1724945947237,37.78236846,147.56,147.46,0.12549]
[1724945947543,6.7774,147.55,147.46,0.12549]
[1724945948850,6.7774,147.55,147.47,16.5852]
[1724945949056,6.7774,147.55,147.48,45.0]
[1724945950131,12.38135734,147.54,147.47,16.5852]
[1724945950330,19.15925734,147.54,147.47,16.5852]
[1724945950750,12.38135734,147.54,147.48,45.0]
[1724945952253,12.38135734,147.54,147.47,16.5852]
[1724945954056,19.15915734,147.54,147.47,16.5852]
[1724945955530,6.7773,147.55,147.47,16.5852]
[1724945955730,19.15835734,147.56,147.48,46.35581438]
[1724945955985,6.7774,147.55,147.48,45.12549]
[1724945956160,6.7767,147.57,147.48,45.0]
[1724945956363,6.7759,147.58,147.49,13.86264393]
[1724945956533,6.775,147.6,147.51,12.38135734]
[1724945956733,19.15635734,147.6,147.52,45.12549]
[1724945957237,6.775,147.6,147.52,45.12549]
[1724945957432,12.38135734,147.59,147.52,45.12549]
[1724945958540,6.775,147.6,147.52,45.12549]
[1724945958848,6.7728,147.65,147.54,6.1067]
[1724945959043,19.15475734,147.64,147.55,57.50684734]
[1724945959642,19.15465734,147.64,147.55,57.50684734]
[1724945959845,12.38135734,147.64,147.56,1.35503058]
[1724945960040,23.1087,147.7,147.56,32.26329164]
[1724945960345,6.772,147.67,147.58,16.6112]
[1724945960537,6.772,147.67,147.59,46.3548122]
[1724945962942,30.90831594,147.66,147.59,46.35493636]
[1724945963134,30.90831594,147.66,147.59,45.0]
[1724945963751,37.68061594,147.66,147.59,45.0]
[1724945965763,37.68061594,147.66,147.58,16.6112]
[1724945966144,37.68061594,147.66,147.59,45.0]
[1724945966345,6.7728,147.65,147.58,16.6112]
[1724945966663,6.7731,147.65,147.58,16.6112]
[1724945966871,6.7732,147.64,147.58,17.96621988]
[1724945967368,6.7732,147.64,147.58,16.6112]
[1724945967952,6.7728,147.65,147.58,16.6112]
[1724945968358,37.68151594,147.64,147.58,16.6112]
[1724945969449,37.68151594,147.64,147.54,22.0914]
[1724945969654,37.68151594,147.64,147.55,20.0]
[1724945970068,30.90831594,147.62,147.54,22.0914]
[1724945970374,37.68261594,147.62,147.54,22.0914]
[1724945970559,6.7748,147.61,147.54,22.0914]
[1724945970989,37.68251594,147.62,147.54,22.0914]
[1724945971156,6.7747,147.61,147.54,22.0914]
[1724945972460,30.90831594,147.62,147.55,1.35535271]
[1724945972653,30.90831594,147.62,147.55,45.0]
[1724945972848,30.90831594,147.66,147.56,1.35510819]
[1724945973053,37.68061594,147.66,147.56,21.35510819]
[1724945973256,37.68061594,147.66,147.57,45.0]
[1724945973257,6.7727,147.65,147.57,45.0]
[1724945973449,6.7727,147.65,147.58,1.35497492]
[1724945973852,6.7732,147.64,147.57,45.0]
[1724945974663,6.7729,147.65,147.58,1.35502176]
[1724945974874,6.7729,147.65,147.57,45.0]
[1724945975359,6.7729,147.65,147.58,1.35502204]
[1724945975561,6.7729,147.65,147.57,45.0]
[1724945975862,37.68061594,147.66,147.56,20.0]
[1724945976057,37.68061594,147.66,147.55,20.12549]
[1724945976058,30.90831594,147.66,147.55,20.12549]
[1724945976371,30.90831594,147.66,147.56,45.25098]
[1724945976550,6.7729,147.65,147.56,45.25098]
[1724945976750,30.90831594,147.66,147.56,45.25098]
[1724945977074,6.7732,147.64,147.56,0.12549]
[1724945977274,6.7732,147.64,147.56,1.35503115]
[1724945977576,6.7728,147.65,147.56,1.35503115]
[1724945977778,30.90831594,147.66,147.55,65.12549]
[1724945977944,30.90831594,147.66,147.56,45.25098]
[1724945979377,6.7728,147.65,147.56,45.25098]
[1724945979756,37.68071594,147.66,147.56,45.25098]
[1724945979958,37.68071594,147.66,147.56,57.6139866]
[1724945979959,12.3630066,147.65,147.56,57.6139866]
[1724945980469,19.1361066,147.65,147.56,57.6139866]
[1724945981748,6.7723,147.66,147.56,57.6139866]
[1724945981962,19.1353066,147.66,147.57,20.0]
[1724945982165,19.1353066,147.66,147.58,1.35485445]
[1724945982560,22.8338,147.68,147.58,13.7178415]
[1724945982756,12.3630066,147.66,147.59,65.12549]
[1724945983074,12.3630066,147.66,147.6,1.35472073]
[1724945983852,12.3630066,147.66,147.6,16.93842073]
[1724945984053,12.3630066,147.68,147.61,6.6397]
[1724945984258,12.3630066,147.68,147.62,1.35457732]
[1724945985767,259.2921,147.74,147.62,1.35457732]
[1724945985768,6.7701,147.71,147.63,0.12549]
[1724945985966,19.1331066,147.71,147.63,0.25098]
[1724945986171,19.1331066,147.71,147.62,45.0]
[1724945987381,12.3630066,147.69,147.62,45.0]
[1724945987673,12.3630066,147.69,147.61,6.76519]
[1724945987872,12.3630066,147.69,147.62,0.12549]
[1724945989077,12.3630066,147.67,147.61,6.6397]
[1724945989975,12.3630066,147.67,147.6,15.5837]
[1724945989976,19.1349066,147.67,147.6,15.5837]
[1724945990163,12.3630066,147.67,147.6,15.5837]
[1724945992057,12.3630066,147.67,147.6,15.0837]
[1724945994259,12.3630066,147.67,147.61,0.12549]
[1724945994787,12.3630066,147.67,147.6,15.0837]
[1724945995174,12.3630066,147.65,147.6,15.0837]
[1724945995378,12.3630066,147.65,147.57,22.073]
[1724945995568,15.7513,147.69,147.57,22.073]
[1724945995569,12.3630066,147.63,147.57,22.073]
[1724945995970,6.7729,147.65,147.57,22.073]
[1724945996270,12.3630066,147.63,147.57,22.073]
[1724945998181,12.3630066,147.63,147.58,20.0]
[1724945998890,19.1376066,147.61,147.53,28.42485372]
[1724945999062,12.3630066,147.59,147.53,28.42485372]
[1724945999585,19.1389066,147.59,147.53,21.3374]
[1724945999786,12.3630066,147.57,147.49,36.73574333]
[1724945999997,12.3630066,147.57,147.49,40.78961076]
[1724946000186,12.3630066,147.57,147.49,28.42660416]
[1724946000491,6.775,147.6,147.5,12.3630066]
[1724946000678,12.3630066,147.59,147.5,12.3630066]
[1724946001279,12.3630066,147.59,147.51,0.12549]
[1724946001598,12.3630066,147.59,147.51,45.12549]
[1724946001967,30.92755207,147.61,147.51,45.12549]
[1724946002598,37.70215207,147.61,147.51,45.12549]
[1724946002777,6.7753,147.6,147.51,45.12549]
[1724946002980,6.7755,147.59,147.51,45.12549]
[1724946003180,37.70305207,147.59,147.5,45.0]
[1724946003377,37.70305207,147.59,147.51,20.0]
[1724946003577,6.7761,147.58,147.51,20.0]
[1724946003881,6.7764,147.57,147.5,20.0]
[1724946004094,6.7774,147.55,147.49,28.42660416]
[1724946004284,37.70495207,147.55,147.5,30.0]
[1724946004483,6.777,147.56,147.46,15.6594]
[1724946004776,37.70315207,147.59,147.48,30.92755207]
[1724946005180,6.7765,147.57,147.48,30.92755207]
[1724946005391,6.7765,147.57,147.49,20.0]
[1724946005689,6.7765,147.57,147.47,22.77630086]
[1724946005893,30.92755207,147.59,147.48,107.40859936]
[1724946006078,21.9006,147.6,147.49,20.0]
[1724946006271,21.9006,147.6,147.5,46.48097927]
[1724946006478,21.9006,147.6,147.5,45.12549]
[1724946006787,21.9006,147.6,147.51,1.48086312]
[1724946006985,21.9006,147.6,147.51,20.12549]
[1724946007193,37.70325207,147.59,147.51,20.12549]
[1724946007375,6.7761,147.58,147.5,45.12549]
[1724946007583,6.7761,147.58,147.5,0.12549]
[1724946007889,30.92755207,147.59,147.5,20.12549]
[1724946007890,37.70315207,147.59,147.5,20.12549]
[1724946008194,6.776,147.58,147.5,20.0]
[1724946008694,6.7764,147.57,147.5,20.0]
[1724946008881,6.7761,147.58,147.5,20.0]
[1724946009082,6.7765,147.57,147.5,20.0]
[1724946009284,6.7764,147.57,147.5,20.0]
[1724946009473,30.92755207,147.57,147.46,53.67884334]
[1724946009674,30.92755207,147.57,147.47,100.9400661]
[1724946009886,30.92755207,147.59,147.47,95.12549]
[1724946010089,30.92755207,147.55,147.47,30.0]
[1724946010373,37.70505207,147.55,147.47,30.0]
[1724946010574,37.70505207,147.55,147.46,22.75129127]
[1724946010975,37.70405207,147.57,147.47,1.35590008]
[1724946011173,37.70405207,147.57,147.46,53.67884334]
[1724946011596,6.777,147.56,147.46,53.67884334]
[1724946012296,6.777,147.56,147.47,65.25098]
[1724946013885,30.92755207,147.59,147.47,65.25098]
[1724946014088,30.92755207,147.59,147.48,30.92755207]
[1724946014296,6.7762,147.58,147.49,45.12549]
[1724946014500,6.7762,147.58,147.48,30.92755207]
[1724946015304,6.7762,147.58,147.49,1.35567144]
[1724946015604,37.70315207,147.59,147.5,0.12549]
[1724946015806,21.9004,147.6,147.5,0.12549]
[1724946016028,21.9004,147.6,147.51,6.6039]
[1724946016208,21.9004,147.6,147.52,16.8200721]
[1724946016405,30.92755207,147.61,147.52,15.4647]
[1724946016603,6.7752,147.6,147.52,15.4647]
[1724946017103,30.92755207,147.61,147.52,15.4647]
[1724946017479,6.7755,147.59,147.52,15.4647]
[1724946018098,30.92755207,147.61,147.52,15.4647]
[1724946018099,6.7764,147.58,147.52,15.4647]
[1724946018285,6.7756,147.59,147.52,15.4647]
[1724946018482,37.70215207,147.61,147.52,15.4647]
[1724946018679,37.70215207,147.61,147.53,45.12549]
[1724946018883,6.7752,147.6,147.53,45.12549]
[1724946019090,30.92755207,147.61,147.53,45.12549]
[1724946019302,37.70245207,147.61,147.53,45.12549]
[1724946019616,6.775,147.6,147.52,15.4647]
[1724946019902,6.7755,147.59,147.52,15.4647]
[1724946020090,6.7761,147.58,147.52,15.4647]
[1724946021704,37.70315207,147.59,147.52,15.4647]
[1724946022217,6.776,147.58,147.52,15.4647]
[1724946022908,6.776,147.58,147.51,6.6039]
[1724946023413,6.7766,147.57,147.51,6.6039]
[1724946025290,6.7766,147.57,147.48,16.582]
[1724946025491,37.70415207,147.57,147.49,0.12549]
[1724946025705,37.70415207,147.57,147.48,16.582]
[1724946025911,6.7773,147.55,147.48,16.582]
[1724946026590,6.7783,147.53,147.48,16.582]
[1724946026796,62.93765207,147.57,147.48,16.582]
[1724946026797,30.92755207,147.55,147.48,16.582]
[1724946027003,30.92755207,147.55,147.45,7.09184867]
[1724946027304,30.92755207,147.53,147.46,30.0]
[1724946027523,6.4463,147.56,147.45,7.09184867]
[1724946027813,30.92755207,147.54,147.45,7.09184867]
[1724946028707,30.92755207,147.52,147.45,7.09184867]
[1724946030215,37.70635207,147.52,147.45,7.09184867]
[1724946030413,6.7788,147.52,147.45,7.09184867]
[1724946031487,6.7784,147.53,147.45,7.09184867]
[1724946031684,6.7779,147.54,147.46,32.28362697]
[1724946034002,6.7779,147.54,147.45,7.09184867]
[1724946034003,15.0688,147.57,147.49,15.6334]
[1724946034508,21.8454,147.57,147.49,15.6334]
[1724946036189,6.777,147.56,147.49,15.6334]
[1724946037322,21.8453,147.57,147.49,15.6334]
[1724946037499,13.2619,147.59,147.49,21.6631]
[1724946037694,13.2619,147.59,147.5,32.28328494]
[1724946038016,6.7752,147.6,147.5,32.28328494]
[1724946038554,15.0438,147.61,147.52,30.92755207]
[1724946038686,21.8187,147.61,147.52,30.92755207]
[1724946038888,15.0438,147.61,147.51,30.0]
[1724946039693,6.7756,147.59,147.51,30.0]
[1724946040302,15.0438,147.61,147.51,30.0]
[1724946040303,15.0438,147.61,147.52,0.12549]
[1724946040509,15.0438,147.61,147.52,45.12549]
[1724946040711,21.8186,147.61,147.52,45.12549]
[1724946041515,15.0438,147.61,147.51,30.92755207]
[1724946041694,15.0438,147.61,147.49,52.59065207]
[1724946041895,15.0438,147.61,147.51,30.92755207]
[1724946042095,6.7755,147.59,147.51,30.92755207]
[1724946043815,6.7751,147.6,147.51,30.92755207]
[1724946044289,15.0438,147.61,147.51,30.92755207]
[1724946044290,6.776,147.58,147.51,30.92755207]
[1724946045805,6.7756,147.59,147.51,30.92755207]
[1724946046816,6.7754,147.6,147.51,30.92755207]
[1724946048213,6.7755,147.59,147.51,30.92755207]
[1724946048918,6.776,147.58,147.51,30.92755207]
[1724946049919,6.776,147.58,147.49,21.6631]
[1724946050104,6.776,147.58,147.5,50.0]
[1724946051037,6.7756,147.59,147.5,50.0]
[1724946051227,6.7751,147.6,147.51,30.92755207]
[1724946051520,12.9249,147.63,147.53,30.92755207]
[1724946051706,6.151,147.63,147.54,1.35527082]
[1724946052611,6.7744,147.62,147.54,1.35527082]
[1724946053103,6.7746,147.61,147.53,30.92755207]
[1724946053716,6.7746,147.61,147.51,30.92755207]
[1724946053919,6.7746,147.61,147.52,20.0]
[1724946055033,6.7746,147.61,147.53,1.3553704]
[1724946055721,6.7752,147.6,147.52,20.0]
[1724946056127,6.7747,147.61,147.52,20.0]
[1724946056933,6.7751,147.6,147.52,20.0]
[1724946057737,6.7747,147.61,147.52,20.0]
[1724946058029,6.7747,147.61,147.54,12.3688919]
[1724946058423,12.3688919,147.62,147.54,12.3688919]
[1724946058609,6.775,147.6,147.54,12.3688919]
[1724946059128,6.775,147.6,147.52,32.3688919]
[1724946059425,6.7755,147.59,147.52,20.0]
[1724946059630,6.7755,147.59,147.52,32.3688919]
[1724946059829,6.7751,147.6,147.52,32.3688919]
[1724946060027,6.7751,147.6,147.53,1.35547286]
[1724946060410,6.7751,147.6,147.52,32.3688919]
[1724946060737,6.7751,147.6,147.53,1.3554761]
[1724946060912,6.7751,147.6,147.52,32.3688919]
[1724946061107,6.7747,147.61,147.54,12.3688919]
[1724946061412,18.5198919,147.63,147.52,20.0]
[1724946061413,6.774,147.63,147.56,12.3688919]
[1724946061816,6.7744,147.62,147.56,13.72410733]
[1724946062018,6.7744,147.62,147.56,12.3688919]
[1724946062528,6.7733,147.64,147.56,13.72410921]
[1724946062916,22.6194,147.65,147.58,12.3688919]
[1724946063125,6.7728,147.65,147.58,12.3688919]
[1724946063513,18.8195919,147.67,147.58,12.3688919]
[1724946063712,6.7733,147.64,147.58,12.3688919]
[1724946064030,6.7737,147.63,147.55,53.69696368]
[1724946064206,6.7741,147.62,147.53,0.12549]
[1724946064535,30.91096368,147.63,147.53,0.12549]
[1724946064536,70.01095368,147.61,147.53,30.0]
[1724946064708,69.88546368,147.61,147.53,30.0]
[1724946064909,6.7756,147.59,147.5,30.91096368]
[1724946065828,6.776,147.58,147.5,30.91096368]
[1724946066924,6.7764,147.57,147.5,30.91096368]
[1724946067543,6.7764,147.57,147.48,54.14680596]
[1724946067741,6.7764,147.57,147.49,65.12549]
[1724946068231,6.7761,147.58,147.49,65.12549]
[1724946069035,6.7755,147.59,147.5,30.91096368]
[1724946069229,6.7755,147.59,147.51,1.35550778]
[1724946069917,6.776,147.58,147.5,30.91096368]
[1724946070324,6.7767,147.57,147.5,30.91096368]
[1724946070620,52.94866368,147.61,147.49,65.12549]
[1724946070827,6.7769,147.56,147.49,65.12549]
[1724946071119,6.7769,147.56,147.49,20.0]
[1724946071522,6.7778,147.54,147.48,23.23584228]
[1724946071723,16.9403,147.58,147.47,6.6518]
[1724946071724,30.91096368,147.55,147.47,6.6518]
[1724946071933,6.7786,147.53,147.47,6.6518]
[1724946072233,6.7779,147.54,147.47,6.6518]
[1724946074537,6.7783,147.53,147.47,6.6518]
[1724946075015,6.7779,147.54,147.47,6.6518]
[1724946076624,46.05036368,147.55,147.44,23.48477233]
[1724946077133,6.7788,147.52,147.44,23.48477233]
[1724946077521,6.7792,147.51,147.44,23.48477233]
[1724946077744,46.05036368,147.55,147.44,23.48477233]
[1724946077928,0.12549,147.54,147.44,23.48477233]
[1724946078129,6.7795,147.51,147.44,23.48477233]
[1724946078331,6.7804,147.49,147.44,23.48477233]
[1724946078534,6.7804,147.49,147.44,16.393]
[1724946080344,6.7796,147.5,147.44,16.393]
[1724946081348,6.7801,147.49,147.44,16.393]
[1724946081547,6.7801,147.49,147.43,6.2858]
[1724946082549,30.91096368,147.53,147.43,6.2858]
[1724946082550,6.7793,147.51,147.43,6.2858]
[1724946082753,6.7793,147.51,147.44,1.35644231]
[1724946083049,6.7787,147.52,147.43,6.2858]
[1724946083355,6.7792,147.51,147.43,6.2858]
[1724946083849,6.7798,147.5,147.43,6.2858]
[1724946085445,30.91096368,147.52,147.43,6.2858]
[1724946085659,6.7805,147.48,147.43,6.2858]
[1724946089378,6.7805,147.48,147.41,16.3689]
[1724946091470,47.98455368,147.51,147.41,16.3689]
[1724946091984,6.7817,147.46,147.41,16.3689]
[1724946092550,6.7817,147.46,147.39,6.4825]
[1724946092551,6.7821,147.45,147.39,6.4825]
[1724946093568,69.14946368,147.49,147.39,6.4825]
[1724946093569,6.7816,147.46,147.39,6.4825]
[1724946093873,6.7817,147.46,147.39,6.4825]
[1724946094366,6.782,147.45,147.39,6.4825]
[1724946094959,6.7825,147.44,147.39,6.4825]
[1724946095360,47.86376368,147.47,147.36,38.00460532]
[1724946095555,6.7836,147.42,147.36,7.09364164]
[1724946095758,6.7836,147.42,147.35,6.0345]
[1724946095961,6.7842,147.41,147.35,6.0345]
[1724946096266,6.7842,147.4,147.35,6.0345]
[1724946096568,12.40208633,147.43,147.35,6.0345]
[1724946096569,6.7847,147.39,147.35,6.0345]
[1724946096772,6.7847,147.39,147.34,16.2635]
[1724946098173,6.7854,147.38,147.34,16.2635]
[1724946098367,6.7854,147.38,147.31,6.0345]
[1724946098875,6.7848,147.39,147.31,6.0345]
[1724946099066,6.7843,147.4,147.32,31.01576707]
[1724946099572,6.7855,147.38,147.32,31.01576707]
[1724946099768,69.26116707,147.43,147.32,31.01576707]
[1724946099971,6.7852,147.38,147.31,6.0345]
[1724946100862,6.7848,147.39,147.31,6.0345]
[1724946101373,6.7843,147.4,147.32,31.01576707]
[1724946102078,69.26116707,147.43,147.31,6.0345]
[1724946102375,6.7857,147.37,147.31,6.0345]
[1724946102576,6.7862,147.36,147.31,6.0345]
[1724946102872,47.97556707,147.41,147.31,6.0345]
[1724946103072,6.7857,147.37,147.31,6.0345]
[1724946103580,16.9629,147.38,147.31,6.0345]
[1724946103760,6.7866,147.35,147.3,16.2635]
[1724946104276,6.7866,147.35,147.27,6.1362]
[1724946104482,45.12549,147.37,147.27,6.1362]
[1724946104679,0.12549,147.36,147.27,6.1362]
[1724946104982,6.7866,147.35,147.27,6.1362]
[1724946105270,6.91259,147.34,147.27,6.1362]
[1724946105476,6.7871,147.34,147.27,6.1362]
[1724946105860,6.7875,147.33,147.27,6.1362]
[1724946106574,6.7871,147.34,147.27,6.1362]
[1724946106884,0.12549,147.36,147.27,6.1362]
[1724946106885,31.01576707,147.35,147.27,6.1362]
[1724946107054,6.788,147.32,147.27,6.1362]
[1724946108061,0.12549,147.36,147.27,6.1362]
[1724946108261,6.7875,147.33,147.27,6.1362]
[1724946109081,6.788,147.32,147.27,6.1362]
[1724946110058,6.788,147.32,147.26,15.9655]
[1724946110275,6.788,147.32,147.23,6.0712]
[1724946110276,6.91389,147.31,147.23,6.0712]
[1724946110470,0.12549,147.31,147.24,20.0]
[1724946110676,6.91399,147.31,147.24,20.0]
[1724946111170,6.7894,147.29,147.23,6.0712]
[1724946111369,0.12549,147.31,147.22,47.01186707]
[1724946111370,6.91529,147.28,147.22,15.9961]
[1724946111580,6.7902,147.27,147.19,6.0712]
[1724946111785,6.7907,147.26,147.19,6.0712]
[1724946111985,0.12549,147.25,147.19,6.0712]
[1724946112283,6.7921,147.23,147.17,15.9961]
[1724946113175,0.12549,147.25,147.17,15.9961]
[1724946113373,45.25098,147.25,147.17,15.9961]
[1724946113568,6.792,147.24,147.17,15.9961]
[1724946113765,6.792,147.24,147.15,6.2898]
[1724946113766,45.12549,147.23,147.15,6.2898]
[1724946114180,45.12549,147.23,147.13,16.296]
[1724946114389,6.7936,147.2,147.13,16.296]
[1724946115391,31.01576707,147.22,147.13,16.296]
[1724946115392,6.7939,147.19,147.13,16.296]
[1724946115789,6.7945,147.18,147.13,16.296]
[1724946116093,6.7948,147.17,147.11,6.5546]
[1724946116284,31.01576707,147.2,147.11,6.5546]
[1724946116585,0.12549,147.21,147.1,16.6581]
[1724946116586,31.01576707,147.18,147.1,16.6581]
[1724946116787,6.7957,147.16,147.1,16.6581]
[1724946116969,6.7958,147.15,147.1,16.6581]
[1724946117565,6.7954,147.16,147.1,16.6581]
[1724946117881,0.12549,147.19,147.1,47.67386707]
[1724946117882,6.7939,147.19,147.1,47.67386707]
[1724946118266,6.91989,147.18,147.1,47.17386707]
[1724946118489,6.7942,147.19,147.11,20.0]
[1724946118693,6.7942,147.19,147.11,1.35925753]
[1724946118988,37.26316707,147.24,147.12,32.37504257]
[1724946119193,6.7931,147.21,147.13,20.0]
[1724946119400,54.24276707,147.24,147.13,20.0]